bitfinex/quotes_ETHUSD_20241216
["timestamp","ask_amount","ask_price","bid_price","bid_amount"]
[1734349131982,2.1571506,3925.5,3925.0,2.29297]
[1734349132179,0.86286024,3925.4,3925.0,2.29297]
[1734349132406,1.05533333,3925.6,3925.0,2.29297]
[1734349132547,3.21322318,3925.6,3925.0,2.29297]
[1734349132747,2.15788985,3925.5,3925.0,2.29297]
[1734349133045,1.05533333,3925.6,3925.0,2.29297]
[1734349133985,0.86323864,3925.9,3924.9,0.8085]
[1734349133986,1.05533333,3925.5,3924.9,0.8085]
[1734349134289,1.05533333,3925.3,3924.9,0.8085]
[1734349134966,0.86323864,3925.2,3924.9,0.8085]
[1734349135292,1.05533333,3925.4,3924.9,0.8085]
[1734349135497,1.9186046,3925.5,3924.9,0.8085]
[1734349135657,2.15819288,3925.4,3925.0,0.78227843]
[1734349135860,1.05533333,3925.8,3925.5,0.7568]
[1734349136064,1.05533333,3926.2,3926.1,0.7945]
[1734349136289,0.86336476,3926.2,3926.1,0.7945]
[1734349136592,1.05533333,3926.5,3926.4,2.29217]
[1734349136766,1.05533333,3927.0,3926.5,0.7945]
[1734349136966,1.05533333,3927.3,3926.9,0.7945]
[1734349137168,2.11066667,3927.6,3927.1,1.12079058]
[1734349137169,1.05533333,3927.6,3927.1,1.12079058]
[1734349137368,1.05533333,3927.6,3927.0,2.29182]
[1734349137694,1.31916666,3927.6,3927.0,2.29182]
[1734349138031,1.31916666,3927.6,3926.9,0.7945]
[1734349138032,2.15705353,3927.5,3927.1,2.29171]
[1734349138157,1.583,3927.8,3927.1,2.29171]
[1734349138158,1.05533333,3927.8,3927.1,2.29171]
[1734349138356,2.15556084,3927.7,3927.1,2.29171]
[1734349138563,0.86222699,3927.6,3927.1,2.29171]
[1734349138806,1.05533333,3927.8,3927.1,2.29171]
[1734349139116,3.47473239,3927.7,3927.1,2.29171]
[1734349139445,1.05533333,3927.9,3927.2,3.10308]
[1734349139609,0.86171653,3927.8,3927.3,2.29163]
[1734349139806,1.05533333,3928.0,3927.3,2.29163]
[1734349140434,0.86173245,3927.9,3927.3,2.29163]
[1734349140606,1.05533333,3928.1,3927.3,2.29163]
[1734349140806,0.26383333,3928.0,3927.3,2.29163]
[1734349141060,1.05533333,3928.2,3927.8,0.8079]
[1734349141344,1.05533333,3928.5,3927.8,0.8079]
[1734349141550,0.86137741,3928.4,3927.8,0.8079]
[1734349141864,1.05533333,3928.8,3927.8,3.09925]
[1734349142009,3.75063045,3928.8,3927.8,0.8079]
[1734349142207,2.15171345,3928.7,3927.8,0.8079]
[1734349142410,2.15171345,3928.7,3927.9,2.29128]
[1734349142608,0.54358367,3928.8,3927.8,0.8079]
[1734349142846,0.3961917,3928.7,3927.8,0.8079]
[1734349143042,0.3961917,3928.7,3927.9,2.29125]
[1734349143687,0.3961917,3928.7,3928.0,2.29122]
[1734349143819,4.90198,3929.3,3927.8,2.29135]
[1734349143820,1.82933333,3929.3,3927.8,2.29135]
[1734349144170,3.562286,3929.6,3928.3,0.7694]
[1734349144171,1.85083333,3929.6,3928.3,0.7694]
[1734349144475,2.54493,3929.4,3928.3,0.7694]
[1734349144652,0.56729527,3929.5,3928.4,2.29099]
[1734349145248,0.56729527,3929.5,3928.5,2.29094]
[1734349145481,0.56729527,3929.5,3928.6,0.7609]
[1734349145755,3.561766,3930.2,3928.6,0.7609]
[1734349145756,0.39075353,3929.4,3928.6,0.7609]
[1734349145964,0.39075353,3929.4,3928.0,2.4254083]
[1734349145965,1.05533333,3930.2,3928.8,2.4254083]
[1734349146120,0.49616552,3930.5,3929.0,0.7612]
[1734349146341,2.5442,3930.5,3929.2,2.29049]
[1734349146536,0.27545688,3930.6,3929.0,0.7612]
[1734349146757,2.54437,3930.3,3929.0,0.7612]
[1734349146969,2.54437,3930.3,3929.0,3.05184]
[1734349147275,3.0,3930.4,3929.1,2.29057]
[1734349147633,0.50155973,3930.6,3929.4,0.7715]
[1734349147878,3.04571973,3930.6,3929.4,0.7715]
[1734349148197,0.38210197,3930.5,3929.4,0.7715]
[1734349148689,0.50155973,3930.6,3929.4,3.0619]
[1734349149238,0.50155973,3930.6,3929.5,2.29035]
[1734349149483,0.50155973,3930.6,3929.4,0.7715]
[1734349149674,3.0,3930.5,3929.4,0.7715]
[1734349150678,0.50155973,3930.6,3929.4,3.06191]
[1734349151019,0.7753,3930.7,3930.0,2.29005]
[1734349151020,3.0,3930.7,3930.0,2.29005]
[1734349151221,2.54365,3931.4,3930.1,0.8114]
[1734349151222,2.54362,3931.4,3930.1,0.8114]
[1734349151428,0.50636001,3931.5,3930.1,0.8114]
[1734349151627,0.386131,3931.4,3930.1,0.8114]
[1734349152094,0.8115,3931.1,3929.0,3.0]
[1734349152301,0.8115,3931.1,3929.7,0.8114]
[1734349152516,0.8115,3931.1,3928.5,2.4254083]
[1734349152517,2.54465,3929.8,3928.6,0.8114]
[1734349152685,0.8115,3930.4,3929.2,0.8114]
[1734349152686,3.0,3930.1,3929.2,0.8114]
[1734349152859,2.5448,3929.6,3929.2,0.8114]
[1734349153399,2.54466,3929.8,3929.2,0.8114]
[1734349153831,0.554439,3930.0,3929.2,0.8114]
[1734349154298,2.54471,3929.8,3929.2,0.8114]
[1734349154518,2.54437,3930.3,3929.2,0.8114]
[1734349154734,2.5442,3930.5,3929.2,0.83684785]
[1734349155002,0.8115,3930.9,3929.3,0.8114]
[1734349155377,2.54424,3930.5,3929.3,0.8114]
[1734349155564,2.54442,3930.2,3929.3,0.8114]
[1734349155766,0.254424,3930.5,3929.3,0.8114]
[1734349156014,2.54472,3929.7,3929.3,0.8114]
[1734349156167,2.54468,3929.8,3929.3,0.8114]
[1734349156682,2.54465,3929.8,3929.3,0.8114]
[1734349157201,5.7811983,3930.4,3929.3,0.8114]
[1734349157202,2.54427,3930.4,3929.3,0.8114]
[1734349157432,2.54462,3929.9,3929.3,0.8114]
[1734349157597,0.254462,3929.8,3929.3,0.8114]
[1734349157936,2.54463,3929.9,3929.3,0.8114]
[1734349158214,2.54467,3929.8,3929.3,0.8114]
[1734349158840,3.0,3930.2,3928.3,0.7665]
[1734349158841,0.8115,3930.1,3928.3,0.7665]
[1734349158971,2.4254083,3929.6,3928.3,0.7665]
[1734349159333,0.8254,3929.5,3928.3,0.7665]
[1734349159532,2.4254083,3929.0,3928.3,0.7665]
[1734349159837,2.5453,3928.8,3928.3,0.7665]
[1734349159971,2.54538,3928.7,3928.3,0.7665]
[1734349160166,2.54556,3928.4,3928.3,0.7665]
[1734349160404,2.54561,3928.4,3927.1,0.7665]
[1734349160599,2.6799463,3928.6,3927.1,0.7665]
[1734349160600,2.4254083,3928.1,3927.1,0.7665]
[1734349161431,2.54596,3927.8,3927.1,0.7665]
[1734349161775,2.5458,3928.1,3927.1,0.7665]
[1734349162129,5.4254083,3928.5,3927.1,0.7665]
[1734349162336,0.70167487,3928.4,3927.1,0.7665]
[1734349162472,2.54586,3928.0,3927.1,0.7665]
[1734349163525,2.54569,3928.3,3927.2,0.55]
[1734349163670,2.54564,3928.3,3927.4,0.55]
[1734349164234,0.70167487,3928.4,3927.3,0.7646]
[1734349164389,2.54613,3927.6,3927.3,0.7646]
[1734349164589,2.54582,3928.0,3927.3,0.7646]
[1734349164800,2.54615,3927.5,3927.3,0.7646]
[1734349165229,2.546,3927.8,3927.3,0.7646]
[1734349165391,0.49712283,3928.0,3927.3,0.7646]
[1734349165585,2.54603,3927.7,3927.3,0.7646]
[1734349165824,2.54609,3927.6,3927.3,0.7646]
[1734349166887,0.70167487,3928.4,3927.3,0.7646]
[1734349167140,2.54583,3928.0,3927.3,0.7646]
[1734349167543,2.54576,3928.1,3927.3,0.7646]
[1734349167998,2.54585,3928.0,3927.3,0.7646]
[1734349168529,2.54595,3927.8,3927.3,0.7646]
[1734349169128,2.54569,3928.2,3927.3,0.7646]
[1734349169315,0.56092604,3928.1,3927.3,0.7646]
[1734349169515,2.54608,3927.6,3927.3,0.7646]
[1734349169719,2.54617,3927.5,3927.3,0.7646]
[1734349170238,2.54611,3927.6,3927.3,0.7646]
[1734349170737,2.54615,3927.5,3927.3,0.7646]
[1734349171535,2.5464,3927.2,3926.3,1.3487]
[1734349171834,2.5464,3927.2,3926.5,0.55]
[1734349172038,3.0,3927.9,3926.5,0.55]
[1734349172394,2.54628,3927.3,3926.5,0.55]
[1734349172506,3.0,3927.9,3926.5,0.55]
[1734349172716,3.0,3927.9,3926.6,0.7823]
[1734349172717,0.68064343,3927.8,3926.6,0.7823]
[1734349173254,2.54612,3927.6,3926.6,0.7823]
[1734349173427,2.54612,3927.6,3926.7,1.3323]
[1734349175359,2.54596,3927.8,3926.8,0.8292]
[1734349175522,2.54602,3927.7,3926.8,0.8292]
[1734349175719,2.54602,3927.7,3926.8,1.170859]
[1734349175923,2.54576,3928.1,3926.8,1.170859]
[1734349176230,2.54576,3928.1,3926.8,0.8292]
[1734349176231,2.5461,3927.6,3926.8,0.8292]
[1734349176632,2.54576,3928.1,3926.8,0.8292]
[1734349176836,0.12858886,3929.4,3924.2,4.14655706]
[1734349176837,2.54533,3928.8,3927.7,0.8324]
[1734349177045,2.54533,3928.8,3928.0,0.55]
[1734349177357,2.799863,3928.8,3928.0,0.55]
[1734349177543,2.54518,3929.0,3928.1,0.8324]
[1734349177946,2.54497,3929.4,3928.1,0.8324]
[1734349177947,2.54506,3929.2,3928.1,0.8324]
[1734349178266,6.2578083,3929.1,3928.1,0.8324]
[1734349178559,2.54559,3928.4,3928.1,0.8324]
[1734349178771,2.4254083,3928.7,3927.0,0.55]
[1734349178993,0.784,3928.4,3927.1,0.8324]
[1734349179637,2.54602,3927.7,3927.1,0.8324]
[1734349179823,2.54589,3927.9,3927.1,0.8324]
[1734349180885,3.0,3928.6,3927.3,0.8226]
[1734349181086,2.54556,3928.4,3927.3,0.8226]
[1734349181379,2.54571,3928.2,3927.3,0.8226]
[1734349182145,2.54576,3928.1,3927.3,0.8226]
[1734349183077,2.54608,3927.6,3927.3,0.8226]
[1734349183277,2.800688,3927.6,3927.3,0.8226]
[1734349183573,2.54608,3927.6,3927.3,0.8226]
[1734349184010,2.54593,3927.9,3927.3,0.8226]
[1734349184282,2.5461,3927.6,3927.3,0.8226]
[1734349184801,2.54621,3927.4,3927.3,0.8226]
[1734349185093,2.800831,3927.4,3927.0,0.8178]
[1734349185255,2.54661,3926.8,3926.2,0.8178]
[1734349185463,2.54668,3926.7,3926.2,0.8178]
[1734349185902,2.4254083,3927.4,3926.2,0.8178]
[1734349186194,2.54686,3926.4,3926.2,0.8178]
[1734349186487,2.54692,3926.3,3925.7,0.8178]
[1734349186787,2.54699,3926.2,3925.7,0.8178]
[1734349186946,0.254692,3926.3,3924.6,1.21538259]
[1734349186947,2.54738,3925.6,3924.6,1.21538259]
[1734349187305,0.8213,3925.7,3924.6,1.21538259]
[1734349187444,2.54757,3925.3,3924.6,1.21538259]
[1734349187646,0.254757,3925.2,3924.6,0.8178]
[1734349188315,2.5477,3925.1,3924.6,0.8178]
[1734349188462,2.54778,3925.0,3924.6,0.8178]
[1734349188676,0.254757,3925.2,3924.5,0.005]
[1734349188677,2.54803,3924.6,3924.5,0.005]
[1734349188978,3.12750383,3924.6,3924.5,0.005]
[1734349189197,0.8213,3925.6,3924.5,0.8228]
[1734349189520,2.54758,3925.3,3924.5,0.8228]
[1734349189799,2.4254083,3925.3,3924.5,0.8228]
[1734349191526,3.0,3925.5,3924.5,0.8228]
[1734349191706,0.87940183,3925.5,3924.5,0.8228]
[1734349191865,2.4254083,3924.9,3924.5,0.8228]
[1734349192066,2.5479,3924.8,3924.5,0.005]
[1734349193294,2.4254083,3924.9,3924.5,0.005]
[1734349193499,2.54774,3925.1,3924.5,0.005]
[1734349193869,3.0,3925.2,3924.5,0.005]
[1734349194175,0.54254083,3925.1,3924.5,0.005]
[1734349194375,3.0,3925.1,3924.5,0.005]
[1734349194793,2.54765,3925.2,3924.5,0.005]
[1734349195428,2.54757,3925.3,3924.5,0.005]
[1734349195909,3.0,3925.2,3924.5,0.005]
[1734349196109,3.0,3925.3,3924.5,0.005]
[1734349196310,2.54783,3924.9,3924.5,0.005]
[1734349196474,2.54777,3925.0,3924.5,0.005]
[1734349196815,3.36873,3924.6,3924.5,0.005]
[1734349200405,2.54792,3924.8,3924.5,0.005]
[1734349200717,2.54803,3924.6,3924.5,0.005]
[1734349201542,6.09293014,3924.8,3924.5,0.005]
[1734349201753,2.54797,3924.7,3924.5,0.005]
[1734349201932,3.54501014,3924.8,3924.5,0.005]
[1734349202097,2.54803,3924.6,3924.5,0.005]
[1734349202299,3.54501014,3924.8,3924.5,0.005]
[1734349202598,2.90248101,3924.7,3924.5,0.005]
[1734349203330,2.54803,3924.6,3924.5,0.005]
[1734349204097,3.30573,3924.6,3924.5,0.005]
[1734349204697,6.30573,3924.6,3924.5,0.005]
[1734349205567,6.30573,3924.6,3922.5,0.005]
[1734349205700,3.0,3922.9,3922.5,0.005]
[1734349205900,3.0,3923.2,3922.5,0.005]
[1734349206770,0.7577,3923.4,3922.5,0.005]
[1734349206977,3.0,3923.2,3922.5,0.005]
[1734349207129,5.99021814,3923.7,3922.5,0.005]
[1734349207130,5.54873,3923.6,3922.5,0.005]
[1734349207327,3.0,3923.3,3922.6,0.8303]
[1734349208792,2.54884,3923.4,3922.6,0.8303]
[1734349209238,3.85388281,3923.6,3922.6,0.8303]
[1734349209580,3.0,3924.0,3922.6,0.8303]
[1734349209731,3.0,3924.1,3922.6,0.8303]
[1734349210295,2.54841,3924.0,3922.6,0.8303]
[1734349210439,3.0,3923.9,3922.6,0.8303]
[1734349210792,2.54872,3923.6,3922.6,0.8303]
[1734349211138,2.54874,3923.5,3922.6,0.8303]
[1734349211464,2.54882,3923.4,3922.6,0.8303]
[1734349211673,2.99021814,3923.3,3922.6,0.8303]
[1734349211979,2.54926,3922.8,3922.6,0.8303]
[1734349212184,2.54932,3922.6,3922.5,0.005]
[1734349212933,3.0,3923.2,3922.5,0.005]
[1734349212934,2.54916,3922.9,3922.5,0.005]
[1734349213132,3.0,3923.2,3922.5,0.005]
[1734349213410,5.53914814,3923.3,3922.5,0.005]
[1734349213411,3.0,3922.6,3922.5,0.005]
[1734349213751,3.48239481,3923.1,3922.5,0.005]
[1734349213752,0.93339481,3923.1,3922.5,0.005]
[1734349214068,2.54898,3923.2,3922.6,0.7801]
[1734349214275,4.4965766,3923.7,3922.5,0.005]
[1734349214276,2.54926,3922.7,3922.5,0.005]
[1734349215992,3.8226,3922.6,3922.5,0.005]
[1734349218279,3.8226,3922.6,3922.5,1e-05]
[1734349219048,3.8226,3922.6,3920.7,0.40312199]
[1734349219049,2.55049,3920.8,3920.7,0.40312199]
[1734349219253,5.886689,3920.8,3920.7,0.40312199]
[1734349219912,8.87690714,3920.8,3920.6,0.005]
[1734349220187,0.336199,3920.8,3920.6,0.005]
[1734349220391,7.3165893,3922.1,3920.6,0.005]
[1734349220548,0.815,3922.1,3920.6,0.005]
[1734349220885,0.95388749,3922.6,3920.9,0.8314]
[1734349220886,2.54948,3922.4,3920.9,0.8314]
[1734349221085,0.36280558,3922.5,3920.9,0.8314]
[1734349221308,0.36280558,3922.5,3921.0,0.02550079]
[1734349221586,2.54935,3922.6,3921.4,0.55]
[1734349221784,0.84587622,3922.9,3921.5,0.812]
[1734349221951,2.54929,3922.7,3921.5,0.812]
[1734349222152,0.84587622,3922.9,3921.5,0.812]
[1734349222355,2.54928,3922.7,3921.5,0.812]
[1734349222555,2.94014697,3922.7,3921.5,0.812]
[1734349222748,0.39086697,3922.7,3921.5,0.812]
[1734349223001,3.84587622,3922.9,3921.5,0.812]
[1734349223147,0.84587622,3922.9,3921.5,0.812]
[1734349223354,2.54921,3922.8,3921.5,0.812]
[1734349223674,3.84587622,3922.9,3921.6,2.03998]
[1734349223873,3.84587622,3922.9,3921.5,0.55]
[1734349223874,0.63949562,3922.8,3921.5,0.55]
[1734349224074,0.84587622,3922.9,3922.0,2.03977]
[1734349224455,0.01447622,3922.9,3921.9,0.812]
[1734349224656,0.01447622,3922.9,3922.0,2.03975]
[1734349224848,0.01447622,3922.9,3921.9,0.812]
[1734349224849,2.56360622,3922.9,3921.9,0.812]
[1734349225053,0.27083684,3922.9,3921.9,2.85182]
[1734349225255,0.01447622,3922.9,3922.0,2.03975]
[1734349225563,0.01447622,3922.9,3921.9,0.812]
[1734349225766,0.01447622,3922.9,3922.1,2.0397]
[1734349226162,0.01447622,3922.9,3921.9,0.812]
[1734349227411,0.01447622,3922.9,3921.9,2.85182]
[1734349227620,0.01447622,3922.9,3922.2,0.55]
[1734349227820,0.01447622,3922.9,3922.3,0.8181]
[1734349229659,2.5494,3922.5,3921.9,0.8301]
[1734349229861,0.01447622,3922.9,3921.9,0.8301]
[1734349229862,2.54925,3922.8,3921.9,0.8301]
[1734349230115,2.54927,3922.7,3921.9,0.8301]
[1734349230460,0.01447622,3922.9,3921.9,0.8301]
[1734349230809,2.54937,3922.6,3921.9,0.8301]
[1734349231858,2.54921,3922.8,3921.9,0.8301]
[1734349232109,2.54927,3922.7,3921.9,0.8301]
[1734349233529,2.54933,3922.6,3921.9,0.8301]
[1734349233685,2.54946,3922.4,3921.9,0.8301]
[1734349236023,0.25637462,3922.7,3921.9,0.8301]
[1734349236430,2.54941,3922.5,3921.9,0.5301]
[1734349236914,2.54952,3922.3,3921.1,2.0402]
[1734349237915,0.28199908,3922.6,3920.9,2.99021814]
[1734349238087,0.01447622,3922.9,3921.7,2.03991]
[1734349238478,0.01447622,3922.9,3921.3,3.02549453]
[1734349238479,0.01447622,3922.9,3921.8,2.03986]
[1734349238712,0.01447622,3922.9,3921.8,2.543846]
[1734349238913,0.01447622,3922.9,3921.9,0.02549454]
[1734349239120,0.01447622,3922.9,3922.1,2.03967]
[1734349239280,0.01447622,3922.9,3922.1,3.0]
[1734349239476,0.01447622,3922.9,3922.6,0.7558]
[1734349240318,0.01447622,3922.9,3922.8,2.03935]
[1734349240533,0.01447622,3922.9,3922.8,0.7558]
[1734349241596,0.01447622,3922.9,3922.2,0.7558]
[1734349241805,0.01447622,3922.9,3922.3,2.03959]
[1734349242623,0.01447622,3922.9,3922.5,2.0395]
[1734349242838,0.01447622,3922.9,3922.6,0.7761]
[1734349243137,0.01447622,3922.9,3922.8,2.03935]
[1734349243508,0.01447622,3922.9,3922.6,2.81555]
[1734349243707,0.01447622,3922.9,3922.6,0.7761]
[1734349243908,0.01447622,3922.9,3922.8,2.03935]
[1734349244541,0.01447622,3922.9,3922.8,3.096995]
[1734349244855,0.01447622,3922.9,3922.8,3.646995]
[1734349245897,0.01447622,3922.9,3922.8,6.646995]
[1734349247497,0.01447622,3922.9,3922.8,0.7761]
[1734349248521,0.01447622,3922.9,3922.2,0.7515]
[1734349248710,0.00526665,3922.9,3922.2,0.7515]
[1734349249423,0.00526665,3922.9,3921.8,0.7515]
[1734349249717,2.54927,3922.7,3921.8,0.7515]
[1734349249925,0.819,3922.4,3921.1,2.04023]
[1734349250223,2.54958,3922.3,3921.1,2.04023]
[1734349250923,0.819,3922.4,3921.0,0.7699]
[1734349251119,0.819,3922.4,3921.2,2.04016]
[1734349251332,1.155839,3922.4,3921.2,2.04016]
[1734349252008,1.155839,3922.4,3921.1,5.04019]
[1734349252207,1.155839,3922.4,3921.2,2.04018]
[1734349252208,3.36846,3922.4,3921.2,2.04018]
[1734349252452,3.36846,3922.4,3921.1,3.0]
[1734349252608,2.54953,3922.3,3921.1,2.04023]
[1734349252809,2.54953,3922.3,3921.1,5.04023]
[1734349253744,0.819,3922.4,3921.1,3.0]
[1734349253944,1.155839,3922.4,3921.3,2.04008]
[1734349254825,1.155839,3922.4,3921.4,2.04008]
[1734349255333,1.155839,3922.4,3921.5,2.04003]
[1734349255722,0.819,3922.4,3921.7,2.03991]
[1734349255955,0.00526665,3922.9,3921.9,0.7617]
[1734349256118,0.00526665,3922.9,3922.0,2.03976]
[1734349257212,0.00526665,3922.9,3922.1,2.03971]
[1734349257417,0.00526665,3922.9,3921.9,0.7617]
[1734349257827,0.00526665,3922.9,3922.1,2.03971]
[1734349258040,0.00526665,3922.9,3922.1,2.0397]
[1734349259152,0.00526665,3922.9,3922.1,0.28014]
[1734349259455,0.00526665,3922.9,3922.4,2.03956]
[1734349260542,0.00526665,3922.9,3922.2,2.03966]
[1734349260725,0.00526665,3922.9,3922.0,2.03976]
[1734349260948,0.00526665,3922.9,3922.0,2.319906]
[1734349261317,0.00526665,3922.9,3922.1,2.03971]
[1734349262527,0.00526665,3922.9,3922.0,0.280146]
[1734349262756,0.00526665,3922.9,3922.0,2.03975]
[1734349262927,0.00526665,3922.9,3921.9,0.7617]
[1734349262928,0.00526665,3922.9,3922.1,2.0397]
[1734349263976,0.00526665,3922.9,3922.2,2.03964]
[1734349264175,0.00526665,3922.9,3922.0,0.02549261]
[1734349264344,0.00526665,3922.9,3922.3,2.0396]
[1734349264545,0.12036921,3923.3,3922.3,2.0396]
[1734349265138,1.04529282,3923.7,3922.7,3.54021814]
[1734349265346,1.018873,3924.8,3922.6,0.7958]
[1734349265347,1.04529282,3924.3,3922.6,0.7958]
[1734349265681,1.04529282,3924.0,3922.2,0.8291]
[1734349265882,2.54856,3923.8,3922.5,2.0395]
[1734349266051,1.44289622,3923.7,3922.5,2.0395]
[1734349266246,2.16815998,3923.6,3922.5,2.0395]
[1734349266462,1.62138029,3923.7,3922.2,0.8291]
[1734349266754,0.86760185,3923.6,3922.6,2.03945]
[1734349267159,1.62138029,3923.7,3922.6,2.03945]
[1734349267371,1.44154248,3923.6,3922.6,2.03945]
[1734349267573,0.7572,3923.5,3922.6,2.03945]
[1734349268180,0.7572,3923.5,3922.2,0.8291]
[1734349268493,1.80099282,3923.9,3923.1,2.0392]
[1734349268781,1.20475728,3923.8,3922.9,2.03926]
[1734349268945,0.33689321,3923.8,3922.9,2.03926]
[1734349270483,0.7557,3923.9,3922.5,4.47009891]
[1734349270484,0.7557,3923.9,3923.0,2.79124]
[1734349270707,0.7557,3923.9,3923.1,2.03919]
[1734349271001,0.7557,3923.9,3922.5,5.43063891]
[1734349271225,2.54861,3923.7,3922.6,0.752]
[1734349271504,0.7557,3923.9,3922.6,0.752]
[1734349271505,0.330431,3923.6,3922.6,0.752]
[1734349271703,1.80770003,3923.9,3922.6,0.752]
[1734349271863,0.7557,3923.9,3922.6,0.77748902]
[1734349272204,0.7557,3923.9,3923.1,2.03918]
[1734349273163,0.7557,3923.9,3923.2,2.03915]
[1734349274529,0.7557,3923.9,3923.2,2.03911]
[1734349274887,0.7557,3923.9,3923.3,2.03909]
[1734349275229,0.7557,3923.9,3923.1,2.0392]
[1734349275519,0.7557,3923.9,3922.9,0.12860363]
[1734349275728,0.7557,3923.9,3923.3,2.03908]
[1734349275919,0.7557,3923.9,3922.9,0.1540897]
[1734349275920,0.7557,3923.9,3922.9,2.58472861]
[1734349276071,0.7879,3924.4,3923.6,2.03894]
[1734349276273,0.7879,3924.4,3923.3,0.7678]
[1734349276274,0.7879,3924.4,3923.4,0.57548425]
[1734349276599,2.10400007,3925.1,3923.4,0.57548425]
[1734349276600,0.7609,3925.1,3924.1,2.43063891]
[1734349276799,0.7609,3925.1,3924.6,2.03837]
[1734349276995,0.7609,3925.1,3924.2,0.02547919]
[1734349276996,1.05200003,3925.8,3925.0,2.03819]
[1734349277179,0.8283,3925.8,3925.1,2.06363478]
[1734349277384,1.09130001,3925.8,3925.1,2.03816]
[1734349277711,0.8283,3925.8,3925.1,2.03816]
[1734349278073,1.57800005,3926.5,3925.3,2.03802]
[1734349278074,0.7951,3926.2,3925.3,2.03802]
[1734349278678,0.7951,3926.2,3924.9,5.85414922]
[1734349278994,0.7951,3926.2,3924.5,2.03844]
[1734349278995,0.7951,3926.2,3924.5,0.7812]
[1734349279196,1.05200003,3926.5,3924.2,3.0]
[1734349279197,0.7755,3925.5,3924.2,3.0]
[1734349279591,0.7755,3925.5,3924.1,3.8274]
[1734349279988,0.7755,3925.5,3924.1,0.8274]
[1734349280195,0.332289,3925.4,3924.2,3.01321736]
[1734349280379,1.57800005,3926.1,3924.5,0.786]
[1734349280380,3.0,3926.1,3924.5,0.786]
[1734349280700,0.7781,3926.0,3924.5,0.786]
[1734349281073,2.54736,3925.7,3924.5,0.786]
[1734349281311,0.254736,3925.6,3924.5,0.786]
[1734349282220,2.802126,3925.6,3924.5,0.786]
[1734349282371,0.8063,3925.3,3924.5,0.786]
[1734349283216,1.05200003,3926.3,3924.5,0.786]
[1734349283217,2.54716,3926.0,3924.7,2.03836]
[1734349283412,0.8039,3925.9,3924.8,0.02547467]
[1734349283599,0.335106,3925.8,3924.7,2.03836]
[1734349283912,3.3511,3925.9,3924.7,2.03836]
[1734349284410,3.3511,3925.9,3924.8,0.02547466]
[1734349284614,0.8039,3925.9,3924.9,2.03824]
[1734349284821,2.5468,3926.5,3925.1,0.8156]
[1734349284978,2.5468,3926.5,3925.3,2.03805]
[1734349285487,0.8248,3926.6,3925.3,2.03805]
[1734349285488,0.8248,3926.6,3925.5,2.03794]
[1734349285695,0.8248,3926.6,3925.6,0.02547017]
[1734349285920,0.8248,3927.4,3925.7,0.8156]
[1734349286145,0.8248,3927.4,3925.7,2.85342]
[1734349286146,2.54655,3926.9,3925.7,2.85342]
[1734349286304,0.50218323,3927.1,3925.7,0.8156]
[1734349286491,2.54648,3927.0,3925.8,2.03779]
[1734349286694,0.50218323,3927.1,3925.9,2.03773]
[1734349286895,0.50218323,3927.1,3926.0,0.285333]
[1734349287219,2.54635,3927.2,3926.0,2.323023]
[1734349287598,2.54653,3926.9,3925.7,2.8534]
[1734349288198,1.32800165,3927.4,3926.0,2.03766]
[1734349289019,2.5464,3927.1,3925.8,2.5878]
[1734349289220,2.5464,3927.1,3925.9,0.34034]
[1734349289918,1.32800165,3927.4,3925.9,0.34034]
[1734349289919,3.0,3927.0,3925.9,0.34034]
[1734349290134,0.7676,3927.8,3926.4,0.8313]
[1734349290297,0.7676,3927.8,3926.5,2.06287213]
[1734349290503,0.7676,3927.8,3926.5,0.02546213]
[1734349290729,0.7676,3927.8,3926.4,0.8313]
[1734349290730,2.5461,3927.6,3926.4,0.8313]
[1734349290889,0.33137,3927.5,3926.4,0.8313]
[1734349291225,2.54621,3927.4,3926.4,0.8313]
[1734349292090,2.54628,3927.3,3926.4,0.8313]
[1734349293044,0.7676,3927.8,3926.4,0.8313]
[1734349293333,2.54622,3927.4,3926.4,0.8313]
[1734349293506,2.54622,3927.4,3926.4,1.118192]
[1734349294504,2.54601,3927.7,3926.4,1.118192]
[1734349294831,2.98773922,3927.8,3925.4,2.98773922]
[1734349295133,2.98773922,3927.8,3925.1,0.12536742]
[1734349295134,0.7915,3926.9,3925.7,0.8078]
[1734349295637,0.7915,3926.9,3925.0,2.98773922]
[1734349295638,3.0,3926.7,3925.0,0.8078]
[1734349295804,2.54718,3925.9,3925.0,0.8078]
[1734349296125,0.7915,3926.2,3925.1,2.03815]
[1734349296333,2.54693,3926.3,3925.2,0.33510954]
[1734349297045,2.54719,3925.9,3925.2,0.33510954]
[1734349297194,2.54719,3925.9,3925.0,0.8078]
[1734349297529,2.54705,3926.1,3925.0,0.8078]
[1734349297756,0.7915,3926.6,3925.3,0.8137]
[1734349297889,2.54686,3926.4,3925.3,0.8137]
[1734349298094,0.7915,3926.6,3925.4,0.259701]
[1734349298296,2.54692,3926.4,3925.3,0.8137]
[1734349298800,2.54693,3926.3,3925.3,0.8137]
[1734349300876,2.54679,3926.6,3925.3,0.8137]
[1734349301169,2.54663,3926.8,3925.6,1.78312]
[1734349301469,2.54663,3926.8,3925.8,0.8157]
[1734349301762,3.30332,3927.7,3926.0,0.8252]
[1734349301763,0.7573,3927.7,3926.0,0.8252]
[1734349301966,0.7742,3928.0,3926.2,0.8252]
[1734349302175,2.54588,3927.9,3926.2,0.8252]
[1734349302330,0.7742,3927.0,3926.2,0.8252]
[1734349302533,2.54684,3926.5,3925.9,0.8252]
[1734349302751,2.54687,3926.4,3925.9,0.8252]
[1734349304546,0.332073,3926.8,3925.2,0.55]